bitfinex/quotes_ETHUSD_20250905
["timestamp","ask_amount","ask_price","bid_price","bid_amount"]
[1757101877710,25.46489582,4332.4,4331.9,0.004]
[1757101877711,3.10040258,4332.0,4331.9,0.004]
[1757101877874,9.98240258,4332.0,4331.9,0.004]
[1757101878071,11.24140258,4332.0,4331.9,0.004]
[1757101878674,0.792,4331.7,4331.2,0.004]
[1757101878871,23.34568202,4331.3,4331.2,0.004]
[1757101879196,29.23938202,4331.3,4331.2,0.004]
[1757101879375,26.30568202,4331.3,4331.2,0.004]
[1757101879575,30.18868202,4331.3,4331.2,0.004]
[1757101880929,12.48107565,4331.3,4331.2,0.004]
[1757101881962,12.94277565,4331.3,4331.2,0.004]
[1757101882304,12.48107565,4331.3,4331.2,0.004]
[1757101882509,12.94277565,4331.3,4331.2,0.004]
[1757101884828,12.94177565,4331.3,4331.2,0.004]
[1757101885046,12.94077565,4331.3,4331.2,0.004]
[1757101885694,11.99147565,4331.3,4331.2,0.004]
[1757101886136,8.11147565,4331.3,4331.2,0.004]
[1757101886300,11.99147565,4331.3,4331.2,0.004]
[1757101886996,8.11147565,4331.3,4331.2,0.004]
[1757101887227,11.99047565,4331.3,4331.2,0.004]
[1757101887743,10.88877565,4331.3,4331.2,0.2996]
[1757101888547,11.19847565,4331.3,4331.2,0.004]
[1757101888911,10.88877565,4331.3,4331.2,0.004]
[1757101889438,10.4883574,4331.3,4331.2,0.7471]
[1757101889611,12.05958175,4331.3,4331.2,0.7471]
[1757101889811,14.3683574,4331.3,4331.2,0.7471]
[1757101890313,14.6780574,4331.3,4331.2,0.004]
[1757101890536,14.3683574,4331.3,4331.2,0.2996]
[1757101890854,14.3683574,4331.3,4331.2,0.004]
[1757101891015,14.3683574,4331.3,4331.2,0.2996]
[1757101891419,7.88977565,4331.3,4331.2,0.2996]
[1757101892738,8.19947565,4331.3,4331.2,0.004]
[1757101892938,7.88977565,4331.3,4331.2,0.2996]
[1757101894852,7.88977565,4331.3,4331.2,0.004]
[1757101896763,5.6942,4331.3,4331.2,1.2459]
[1757101900334,5.6942,4331.3,4331.2,0.2996]
[1757101901455,8.00297565,4331.3,4331.2,0.2996]
[1757101902029,5.6942,4331.3,4331.2,0.2996]
[1757101902226,5.6942,4331.3,4331.2,0.7733]
[1757101902460,5.6942,4331.3,4331.2,0.2996]
[1757101905159,1.8162,4331.3,4331.2,1.2366]
[1757101905461,5.6912,4331.3,4331.2,1.2366]
[1757101906035,5.6912,4331.3,4331.2,0.7733]
[1757101908729,5.9982,4331.3,4331.2,0.004]
[1757101908950,8.30697565,4331.3,4331.2,0.004]
[1757101909147,5.9982,4331.3,4331.2,0.004]
[1757101909681,1.8162,4331.3,4331.2,0.004]
[1757101909977,5.6902,4331.3,4331.2,0.004]
[1757101910173,5.6902,4331.3,4331.2,0.3061]
[1757101911263,7.99897565,4331.3,4331.2,0.3061]
[1757101911464,7.99897565,4331.3,4331.2,0.004]
[1757101911767,5.6902,4331.3,4331.2,0.004]
[1757101913064,7.99897565,4331.3,4331.2,0.004]
[1757101913236,8.30597565,4331.3,4331.2,0.004]
[1757101913437,8.77267565,4331.3,4331.2,0.004]
[1757101913636,9.21647565,4331.3,4331.2,0.004]
[1757101913962,8.77267565,4331.3,4331.2,0.004]
[1757101914871,8.30597565,4331.3,4331.2,0.004]
[1757101915772,9.21647565,4331.3,4331.2,0.004]
[1757101915934,8.77267565,4331.3,4331.2,0.004]
[1757101917368,8.30597565,4331.3,4331.2,0.004]
[1757101917569,8.30397565,4331.3,4331.2,0.004]
[1757101918076,8.77067565,4331.3,4331.2,0.004]
[1757101919676,10.00647565,4331.3,4331.2,0.004]
[1757101919895,13.00647565,4331.3,4331.2,1e-08]
[1757101920063,6.10082896,4331.2,4331.1,1e-08]
[1757101920264,6.10082896,4331.2,4329.3,0.09657105]
[1757101920265,0.792,4330.8,4329.3,0.09657105]
[1757101920594,6.10136215,4330.2,4329.3,0.004]
[1757101920891,9.97336215,4330.2,4329.3,0.004]
[1757101921043,11.19086215,4330.2,4329.3,0.004]
[1757101921757,7.31886215,4330.2,4329.3,0.004]
[1757101921963,11.19286215,4330.2,4329.3,0.004]
[1757101923044,11.19186215,4330.2,4329.3,0.004]
[1757101923251,5.30936215,4330.2,4330.1,0.30210001]
[1757101923470,9.18436215,4330.2,4330.1,0.30210001]
[1757101923876,2.30931983,4330.3,4330.1,0.77580001]
[1757101924077,6.18336215,4330.2,4330.1,1.23910001]
[1757101924285,6.95706215,4330.2,4330.1,1e-08]
[1757101924581,7.74906215,4330.2,4330.1,1e-08]
[1757101924880,6.97536215,4330.2,4330.1,1e-08]
[1757101925079,3.10136215,4330.2,4330.1,1e-08]
[1757101925259,6.97636215,4330.2,4330.1,0.30210001]
[1757101925851,6.97636215,4330.2,4330.1,1e-08]
[1757101926047,10.28336215,4330.2,4330.1,1e-08]
[1757101926279,11.19386215,4330.2,4330.1,1e-08]
[1757101927350,7.31886215,4330.2,4330.1,1e-08]
[1757101927550,11.19786215,4330.2,4330.1,1e-08]
[1757101929281,7.31886215,4330.2,4330.1,1e-08]
[1757101929488,11.19786215,4330.2,4330.1,1e-08]
[1757101930358,9.18736215,4330.2,4330.1,0.29540001]
[1757101930778,6.18936215,4330.2,4330.1,1.20810001]
[1757101931091,3.88,4330.2,4330.1,1.20810001]
[1757101931902,6.18936215,4330.2,4330.1,1.20810001]
[1757101932193,6.18936215,4330.2,4330.1,1e-08]
[1757101932448,6.18936215,4330.2,4330.1,0.29540001]
[1757101933994,6.18936215,4330.2,4330.1,0.73760001]
[1757101934227,3.88,4330.2,4330.1,0.73760001]
[1757101934427,6.18936215,4330.2,4330.1,1.20810001]
[1757101934634,3.88,4330.2,4330.1,1.20810001]
[1757101934801,6.18936215,4330.2,4330.1,1.20810001]
[1757101935437,6.18936215,4330.2,4330.1,0.73760001]
[1757101935635,6.18936215,4330.2,4330.1,0.29540001]
[1757101935935,6.18936215,4330.2,4330.1,1.20810001]
[1757101936451,6.18936215,4330.2,4330.1,0.73760001]
[1757101936766,6.18936215,4330.2,4330.1,0.29540001]
[1757101936912,6.18936215,4330.2,4330.1,1e-08]
[1757101937520,6.49056215,4330.2,4330.1,1e-08]
[1757101938750,6.18936215,4330.2,4330.1,1e-08]
[1757101939880,8.21616215,4330.2,4330.1,1e-08]
[1757101940029,11.21616215,4330.2,4330.1,1e-08]
[1757101946672,6.10178888,4329.4,4329.1,0.004]
[1757101946974,11.67978888,4329.4,4329.1,0.004]
[1757101947184,8.58438888,4329.4,4329.1,0.004]
[1757101947358,11.68078888,4329.4,4329.3,0.2994]
[1757101947538,11.98198888,4329.4,4329.3,0.004]
[1757101949757,11.68078888,4329.4,4329.3,0.004]
[1757101949962,4.01178888,4329.4,4329.3,0.7416]
[1757101950271,4.01178888,4329.4,4329.3,1.2121]
[1757101950272,7.88778888,4329.4,4329.3,1.2121]
[1757101950468,7.88778888,4329.4,4329.3,0.7416]
[1757101950670,4.01178888,4329.4,4329.3,0.7416]
[1757101950875,7.88978888,4329.4,4329.3,1.2121]
[1757101951188,7.88878888,4329.4,4329.3,1.2121]
[1757101951366,7.88878888,4329.4,4329.3,0.7416]
[1757101951569,7.88878888,4329.4,4329.3,0.2994]
[1757101952585,4.01178888,4329.4,4329.3,0.2994]
[1757101952786,8.18998888,4329.4,4329.3,0.004]
[1757101952986,8.98198888,4329.4,4329.3,0.004]
[1757101953193,12.46138888,4329.4,4329.3,0.004]
[1757101953388,8.58438888,4329.4,4329.3,0.004]
[1757101953589,11.98098888,4329.4,4329.3,0.004]
[1757101955461,12.91458888,4329.4,4329.3,0.004]
[1757101956198,3.10184223,4329.3,4329.2,1e-08]
[1757101956400,6.10210903,4328.8,4328.7,1e-08]
[1757101956614,17.91288989,4328.8,4328.7,1e-08]
[1757101956763,18.84648989,4328.8,4328.7,1e-08]
[1757101957186,15.06212162,4328.8,4328.7,1e-08]
[1757101957411,18.94112162,4328.8,4328.7,1e-08]
[1757101957904,18.94012162,4328.8,4328.7,1e-08]
[1757101959496,13.91810517,4328.8,4328.7,1e-08]
[1757101959700,17.79610517,4328.8,4328.7,1e-08]
[1757101960218,16.86250517,4328.8,4328.7,1e-08]
[1757101960519,17.78880517,4328.8,4328.7,1e-08]
[1757101960928,16.86150517,4328.8,4328.7,1e-08]
[1757101962977,12.68330517,4328.8,4328.7,0.77960001]
[1757101963190,16.56030517,4328.8,4328.7,0.77960001]
[1757101963391,12.68330517,4328.8,4328.7,0.77960001]
[1757101963586,6.18710903,4328.8,4328.7,1.23270001]
[1757101963908,12.67567344,4328.8,4328.7,0.31150001]
[1757101964076,12.67567344,4328.8,4328.7,1e-08]
[1757101964485,12.67567344,4328.8,4328.7,0.31150001]
[1757101967223,12.67567344,4328.8,4328.7,0.77960001]
[1757101969682,8.79867344,4328.8,4328.7,0.77960001]
[1757101969885,12.67467344,4328.8,4328.7,0.77960001]
[1757101970190,12.67467344,4328.8,4328.7,0.31150001]
[1757101972121,12.67567344,4328.8,4328.7,0.31150001]
[1757101972689,12.67567344,4328.8,4328.7,0.77960001]
[1757101972880,12.67567344,4328.8,4328.7,1.23270001]
[1757101973099,12.67567344,4328.8,4328.7,0.77960001]
[1757101974810,8.79967344,4328.8,4328.7,0.77960001]
[1757101975011,12.67567344,4328.8,4328.7,0.77960001]
[1757101977319,6.18710903,4328.8,4328.7,0.77960001]
[1757101977628,6.18710903,4328.8,4328.7,1.23270001]
[1757101978005,0.001,4328.8,4328.7,1.23270001]
[1757101978206,0.001,4328.8,4328.7,1.35677001]
[1757101978435,3.877,4328.8,4328.7,1.35677001]
[1757101979209,3.877,4328.8,4328.7,1.23270001]
[1757101980326,3.877,4328.8,4328.7,0.31150001]
[1757101980699,3.877,4328.8,4328.7,0.77960001]
[1757101982527,3.877,4328.8,4328.7,1.23270001]
[1757101982528,3.876,4328.8,4328.7,1.23270001]
[1757101982701,3.876,4328.8,4328.7,0.77960001]
[1757101982902,3.876,4328.8,4328.7,0.31150001]
[1757101983302,12.96517344,4328.8,4328.7,1e-08]
[1757101983612,6.47660903,4328.8,4328.7,1e-08]
[1757101983814,12.96517344,4328.8,4328.7,1e-08]
[1757101984405,14.68347344,4328.8,4328.7,1e-08]
[1757101984606,17.68347344,4328.8,4328.7,1e-08]
[1757101990741,10.75540903,4328.8,4328.7,1e-08]
[1757101991043,2.31110903,4328.8,4328.7,0.75080001]
[1757101991212,6.18610903,4328.8,4328.7,0.75080001]
[1757101992144,2.31110903,4328.8,4328.7,1.23350001]
[1757101992347,6.18610903,4328.8,4328.7,1.23350001]
[1757101993042,6.18610903,4328.8,4328.7,0.75080001]
[1757101993043,12.67467344,4328.8,4328.7,0.75080001]
[1757101993244,12.67467344,4328.8,4328.7,0.29920001]
[1757101993417,12.67467344,4328.8,4328.7,0.75080001]
[1757101995448,12.67467344,4328.8,4328.7,0.29920001]
[1757101996744,12.67467344,4328.8,4328.7,0.75080001]
[1757101997421,6.18610903,4328.8,4328.7,0.29920001]
[1757101997624,6.18610903,4328.8,4328.7,0.75080001]
[1757101999060,7.72910903,4328.8,4328.7,1e-08]
[1757101999353,8.18320903,4328.8,4328.7,1e-08]
[1757101999758,7.72910903,4328.8,4328.7,1e-08]
[1757102000143,8.18320903,4328.8,4328.7,1e-08]
[1757102000450,11.18320903,4328.8,4328.7,1e-08]
[1757102004727,6.85410903,4328.8,4328.7,1e-08]
[1757102005146,9.97810903,4328.8,4328.7,0.29920001]
[1757102005431,16.46667344,4328.8,4328.7,1e-08]
[1757102006554,16.46667344,4328.8,4328.7,0.29920001]
[1757102006756,12.59167344,4328.8,4328.7,1e-08]
[1757102006961,16.76267344,4328.8,4328.7,1e-08]
[1757102007496,16.46667344,4328.8,4328.7,1e-08]
[1757102007623,16.76267344,4328.8,4328.7,1e-08]
[1757102008445,10.27510903,4328.8,4328.7,1e-08]
[1757102009346,2.31110903,4328.8,4328.7,0.78190001]
[1757102009531,2.31110903,4328.8,4328.7,1.23350001]
[1757102009733,6.18710903,4328.8,4328.7,1.23350001]
[1757102010467,6.18710903,4328.8,4328.7,1e-08]
[1757102010766,6.18710903,4328.8,4328.7,0.29920001]
[1757102010931,6.18710903,4328.8,4328.7,0.75080001]
[1757102011852,6.18710903,4328.8,4328.7,1.23350001]
[1757102012653,2.31110903,4328.8,4328.7,0.75080001]
[1757102013047,6.18610903,4328.8,4328.7,1.23350001]
[1757102013454,6.18610903,4328.8,4328.7,0.75080001]
[1757102013866,6.18610903,4328.8,4328.7,0.29920001]
[1757102014072,12.67467344,4328.8,4328.7,0.75080001]
[1757102014769,12.67467344,4328.8,4328.7,1.23350001]
[1757102014770,2.31110903,4328.8,4328.7,1.23350001]
[1757102014951,6.18610903,4328.8,4328.7,1.23350001]
[1757102015765,2.31110903,4328.8,4328.7,1.23350001]
[1757102015966,6.18610903,4328.8,4328.7,1.23350001]
[1757102019168,6.18610903,4328.8,4328.7,0.75080001]
[1757102019545,0.001,4328.8,4328.7,3.53446241]
[1757102019739,3.876,4328.8,4328.7,2.22740269]
[1757102019984,3.876,4328.8,4328.7,1.22430001]
[1757102023645,3.876,4328.8,4328.7,0.75080001]
[1757102024561,6.18610903,4328.8,4328.7,0.75080001]
[1757102024766,3.876,4328.8,4328.7,0.75080001]
[1757102025470,3.876,4328.8,4328.7,0.29920001]
[1757102025996,6.18610903,4328.8,4328.7,0.29920001]
[1757102026351,6.50220903,4328.8,4328.7,1e-08]
[1757102026888,6.18610903,4328.8,4328.7,1e-08]
[1757102027254,6.18610903,4328.8,4328.7,0.29520001]
[1757102028489,3.876,4328.8,4328.7,0.29520001]
[1757102028688,3.876,4328.8,4328.7,0.75200001]
[1757102029006,3.9912,4328.8,4328.7,1.22550001]
[1757102030258,3.9912,4328.8,4328.7,0.75200001]
[1757102030483,3.9912,4328.8,4328.7,0.29520001]
[1757102030685,3.9912,4328.8,4328.7,0.75200001]
[1757102032206,3.9912,4328.8,4328.7,1.22550001]
[1757102034005,3.9912,4328.8,4328.7,0.75200001]
[1757102035209,3.9912,4328.8,4328.7,3.06216241]
[1757102035210,0.1162,4328.8,4328.7,3.06216241]
[1757102035409,0.001,4328.8,4328.7,3.89004208]
[1757102035581,0.001,4328.8,4328.7,1.57987968]
[1757102035775,0.001,4328.8,4328.7,3.41654208]
[1757102036389,0.001,4328.8,4328.7,3.89004208]
[1757102036600,0.001,4328.8,4328.7,8.09004208]
[1757102037710,0.001,4328.8,4328.7,5.77987968]
[1757102038007,0.001,4328.8,4328.7,7.26216241]
[1757102038309,0.001,4328.8,4328.7,7.73566241]
[1757102040318,0.7677,4328.8,4328.7,4.20000001]
[1757102040480,3.53280903,4328.8,4328.7,4.20000001]
[1757102040685,3.07780903,4328.8,4328.7,4.20000001]
[1757102041917,0.001,4328.8,4328.7,4.20000001]
[1757102042085,6.18510903,4328.8,4328.7,4.49520001]
[1757102042285,0.001,4328.8,4328.7,4.49520001]
[1757102042534,3.875,4328.8,4328.7,0.29520001]
[1757102043220,3.875,4328.8,4328.7,1.22550001]
[1757102043420,3.875,4328.8,4328.7,3.53566241]
[1757102043583,0.001,4328.8,4328.7,2.23088877]
[1757102043789,3.875,4328.8,4328.7,0.29520001]
[1757102044123,3.875,4328.8,4328.7,1e-08]
[1757102044519,3.875,4328.8,4328.7,0.29520001]
[1757102045580,3.875,4328.8,4328.7,1e-08]
[1757102046320,4.1911,4328.8,4328.7,1e-08]
[1757102047490,3.875,4328.8,4328.7,1e-08]
[1757102047792,0.001,4328.8,4328.7,3.97525299]
[1757102047984,3.875,4328.8,4328.7,3.97525299]
[1757102048185,3.875,4328.8,4328.7,3.50175299]
[1757102048417,3.875,4328.8,4328.7,5.39159059]
[1757102048616,3.875,4328.8,4328.7,4.49520001]
[1757102048807,3.875,4328.8,4328.7,6.80536241]
[1757102049189,3.875,4328.8,4328.7,7.26216241]
[1757102049392,3.875,4328.8,4328.7,7.71956241]
[1757102049932,3.875,4328.8,4328.7,4.95200001]
[1757102050247,0.001,4328.8,4328.7,8.44658323]
[1757102050523,0.001,4329.3,4329.2,2.30989559]
[1757102050725,0.001,4329.3,4329.2,16.81548695]
[1757102050893,0.001,4329.3,4329.2,0.2898]
[1757102051088,0.001,4329.3,4329.2,2.59969559]
[1757102051511,0.001,4329.3,4329.2,3.02899559]
[1757102052610,0.001,4329.3,4329.2,3.5744149]
[1757102053008,0.001,4329.3,4329.2,1.26451931]
[1757102053206,0.001,4329.3,4329.2,0.7191]
[1757102053413,0.001,4329.3,4329.2,3.02899559]
[1757102054019,0.001,4329.3,4329.2,0.7191]
[1757102054224,0.001,4329.3,4329.2,3.02899559]
[1757102054920,0.001,4329.3,4329.2,3.48639559]
[1757102055113,0.001,4329.3,4329.2,4.94439429]
[1757102055731,0.001,4329.3,4329.2,1.7477987]
[1757102056025,0.001,4329.3,4329.2,2.71489559]
[1757102056400,0.001,4329.3,4329.2,0.2898]
[1757102056624,0.001,4329.3,4329.2,2.59969559]
[1757102056794,0.001,4329.3,4329.2,0.2898]
[1757102057315,0.001,4329.3,4328.9,2.42524335]
[1757102057514,0.001,4329.3,4329.0,2.31000063]
[1757102057722,0.001,4329.3,4328.9,0.1152]
[1757102057902,0.4812,4329.3,4328.9,0.1152]
[1757102058234,3.878,4329.3,4328.9,0.1152]
[1757102058439,3.878,4329.3,4329.0,2.30995585]
[1757102058598,3.878,4329.3,4329.1,2.30994678]
[1757102058798,3.878,4329.3,4329.0,2.30996136]
[1757102059021,3.878,4329.3,4329.1,2.30994871]
[1757102059211,3.878,4329.3,4329.2,0.2898]
[1757102060405,3.878,4329.3,4329.2,2.30989559]
[1757102060605,3.878,4329.3,4329.2,0.2898]
[1757102060812,0.001,4329.3,4329.2,0.2898]
[1757102063411,0.001,4329.3,4329.2,7.73149456]
[1757102065217,0.3147,4329.3,4329.2,4.2]
[1757102065447,0.7736,4329.3,4329.2,4.2]
[1757102065747,4.1887,4329.3,4329.2,4.2]
[1757102066515,4.6476,4329.3,4329.2,4.2]
[1757102066720,6.95744223,4329.3,4329.2,4.2]
[1757102066950,6.95744223,4329.3,4328.7,4.20000001]
[1757102066951,2.31007842,4328.9,4328.7,4.20000001]
[1757102067152,4.6476,4329.3,4328.7,4.20000001]
[1757102067153,4.3039,4328.8,4328.7,4.20000001]
[1757102067954,0.4289,4328.8,4328.7,4.20000001]
[1757102068251,4.3039,4328.8,4328.7,4.20000001]
[1757102068974,4.3039,4328.8,4328.7,4.48980001]
[1757102068975,3.9902,4328.8,4328.7,4.48980001]
[1757102069181,0.001,4329.3,4328.8,2.31008236]
[1757102069182,0.1152,4329.2,4328.8,2.31008236]
[1757102069475,0.1152,4329.2,4329.0,2.30996834]
[1757102069623,0.1152,4329.2,4329.1,0.2898]
[1757102070140,3.9902,4329.2,4329.1,0.2898]
[1757102070342,3.9902,4329.2,4328.8,2.31009053]
[1757102070343,3.9902,4329.2,4328.8,0.4293]
[1757102070663,3.9902,4329.2,4329.1,0.2898]
[1757102070849,3.9902,4329.2,4328.7,4.64978001]
[1757102070850,4.3039,4329.2,4328.7,4.20000001]
[1757102071045,7.07272312,4329.2,4328.7,4.20000001]
[1757102071356,2.30996206,4329.1,4328.7,4.20000001]
[1757102071956,0.3137,4328.8,4328.7,4.20000001]
[1757102072457,4.1887,4328.8,4328.7,4.20000001]
[1757102074242,2.30997272,4329.1,4328.7,4.48980001]
[1757102074448,3.875,4329.0,4328.7,4.20000001]
[1757102075952,2.30996219,4329.1,4328.7,4.20000001]
[1757102076261,3.874,4329.0,4328.7,4.62930001]
[1757102076975,3.874,4329.0,4328.7,4.20000001]
[1757102077136,6.18400844,4329.0,4328.7,4.20000001]
[1757102077336,3.874,4329.0,4328.7,4.20000001]
[1757102078235,3.874,4329.0,4328.8,4.2]
[1757102078660,0.3137,4328.9,4328.8,4.2]
[1757102079472,2.62375567,4328.9,4328.8,4.2]
[1757102079769,2.62375567,4328.9,4328.8,4.5098]
[1757102079770,0.3137,4328.9,4328.8,4.5098]
[1757102079938,3.872,4329.0,4328.9,2.31005567]
[1757102080271,0.1152,4329.2,4329.1,2.30994895]
[1757102080482,0.001,4329.3,4329.2,2.30989559]
[1757102080633,0.001,4329.3,4329.2,3.06999559]
[1757102080836,0.001,4329.3,4329.2,0.96951445]
[1757102081280,0.3109,4329.3,4329.1,4.2]
[1757102081484,0.001,4329.3,4329.2,0.3098]
[1757102081635,3.876,4329.3,4329.2,3.06999559]
[1757102082080,3.876,4329.3,4329.2,0.7601]
[1757102082279,3.876,4329.3,4329.2,0.3098]
[1757102084069,3.876,4329.3,4329.2,4.5098]
[1757102084879,0.001,4329.3,4329.2,7.26999559]
[1757102085178,0.001,4329.3,4329.2,8.2279943]
[1757102087761,0.001,4329.3,4329.2,5.91809871]
[1757102088272,0.001,4329.3,4329.2,5.15799871]
[1757102088585,0.7602,4329.3,4329.2,4.2]
[1757102088790,3.07004223,4329.3,4329.2,4.2]
[1757102089797,0.3109,4329.3,4329.2,4.2]
[1757102090103,3.875,4329.3,4329.2,4.5098]
[1757102090312,0.001,4329.3,4329.2,8.23951742]
[1757102090460,0.001,4329.3,4329.2,15.11451742]
[1757102090775,0.001,4329.3,4329.2,21.59722071]
[1757102091160,0.001,4329.3,4329.2,21.68978085]
[1757102091705,0.001,4329.3,4329.2,15.20707756]
[1757102092688,0.001,4329.3,4329.2,18.70707756]
[1757102094662,0.001,4329.3,4329.2,18.70807756]
[1757102095473,0.001,4329.3,4329.2,14.75777756]
[1757102096006,0.001,4329.3,4329.2,10.55777756]
[1757102096164,0.001,4329.3,4329.2,11.00807756]
[1757102097816,0.001,4329.3,4329.2,10.55777756]
[1757102098188,0.001,4329.3,4329.2,11.00807756]
[1757102098513,0.001,4329.3,4329.2,17.49078085]
[1757102098666,0.001,4329.3,4329.2,11.00807756]
[1757102099496,0.001,4329.3,4329.2,14.50807756]
[1757102100113,0.001,4329.3,4329.2,14.05777756]
[1757102100324,0.001,4329.3,4329.2,15.91232512]
[1757102100477,0.001,4329.7,4329.6,8.79238547]
[1757102100794,1e-08,4329.8,4329.7,3.10162884]
[1757102100995,1e-08,4329.8,4329.7,3.88482512]
[1757102101317,1e-08,4329.8,4329.7,7.38482512]
[1757102101468,1e-08,4329.8,4329.7,7.36172884]
[1757102101668,1e-08,4329.8,4329.7,9.62963681]
[1757102101899,1e-08,4329.8,4329.7,12.81317788]
[1757102102268,1e-08,4329.8,4329.7,16.60517788]
[1757102103000,1e-08,4329.8,4329.7,12.72217788]
[1757102103173,1e-08,4329.8,4329.7,16.60717788]
[1757102103364,1e-08,4329.8,4329.7,18.41288117]
[1757102103568,1e-08,4329.8,4329.7,29.57258446]
[1757102103774,1e-08,4329.8,4329.7,23.08988117]
[1757102109090,0.001,4330.3,4329.7,23.08988117]
[1757102109091,0.001,4330.3,4329.7,27.26295562]
[1757102109289,0.001,4331.2,4330.7,2.30909552]
[1757102109515,0.001,4331.2,4330.7,13.48988976]
[1757102109704,0.001,4331.2,4330.7,17.73519881]
[1757102110214,0.001,4331.2,4330.7,6.20761519]
[1757102110417,0.001,4331.2,4330.7,16.57531848]
[1757102110615,0.001,4331.2,4330.7,19.04136611]
[1757102110801,0.001,4331.2,4330.7,18.57896611]
[1757102111388,0.001,4331.2,4330.7,19.83336611]
[1757102113815,0.001,4331.2,4331.1,2.30888227]
[1757102113991,0.001,4331.2,4331.1,15.67558556]
[1757102114205,0.001,4331.2,4331.1,18.36469353]
[1757102114389,0.001,4331.2,4331.1,21.86469353]
[1757102114589,0.001,4331.2,4331.1,21.95720785]
[1757102115809,0.3132,4331.2,4331.1,15.16850456]
[1757102116014,0.3132,4331.2,4331.1,21.65120785]
[1757102118221,0.001,4331.2,4331.1,21.95720785]
[1757102118419,0.001,4331.2,4331.1,22.41960785]
[1757102118824,0.001,4331.2,4331.1,23.09640785]
[1757102118993,0.001,4331.2,4331.1,22.30440785]
[1757102119624,0.001,4331.2,4331.1,23.09640785]
[1757102121392,0.001,4331.2,4331.1,22.63400785]
[1757102121826,0.001,4331.2,4331.1,23.09640785]
[1757102123130,0.001,4331.2,4331.1,22.63400785]
[1757102123296,0.001,4331.2,4331.1,22.32800785]
[1757102123938,0.001,4331.2,4331.1,26.52800785]
[1757102124133,0.001,4331.2,4331.1,26.83400785]
[1757102124303,0.3132,4331.2,4331.1,21.85200785]
[1757102124510,0.001,4331.2,4331.1,25.73800785]
[1757102124830,0.001,4331.2,4331.1,26.04400785]
[1757102125736,0.3132,4331.2,4331.1,25.73800785]
[1757102126110,0.809,4331.2,4331.1,25.73800785]
[1757102126828,0.809,4331.2,4331.1,16.98639659]
[1757102126829,1.2433,4331.2,4331.1,16.98639659]
[1757102127033,1.2433,4331.2,4331.1,13.48639659]
[1757102127206,1.2433,4331.2,4331.1,13.39388227]
[1757102127608,0.001,4331.2,4331.1,13.69988227]
[1757102127821,0.001,4331.2,4331.1,15.96779024]
[1757102128339,0.001,4331.2,4331.1,15.66179024]
[1757102128740,0.001,4331.2,4331.1,15.77699024]
[1757102129318,0.001,4331.2,4331.1,16.27279024]
[1757102131044,0.001,4331.2,4331.1,19.77279024]
[1757102131616,0.001,4331.2,4331.1,20.07879024]
[1757102131823,0.001,4331.2,4331.1,20.99349024]
[1757102132217,0.001,4331.2,4331.1,20.54119024]
[1757102132611,0.3132,4331.2,4331.1,26.25549353]
[1757102133442,0.001,4331.2,4331.1,26.56149353]
[1757102133967,0.001,4331.2,4331.1,26.25549353]
[1757102134720,0.001,4331.2,4331.1,26.56149353]
[1757102135051,0.001,4331.2,4331.1,26.25549353]
[1757102135266,0.3132,4331.2,4331.1,26.25549353]
[1757102135418,0.809,4331.2,4331.1,26.25549353]
[1757102135742,1.2433,4331.2,4331.1,19.77079024]
[1757102135948,1.2433,4331.2,4331.1,17.50288227]
[1757102136368,0.809,4331.2,4331.1,17.50288227]
[1757102136519,0.3132,4331.2,4331.1,17.50288227]
[1757102137219,0.001,4331.2,4331.1,17.50288227]
[1757102137956,0.001,4331.2,4331.1,17.69368227]
[1757102138163,0.001,4331.2,4331.1,20.07679024]
[1757102138358,0.001,4331.2,4331.1,16.27079024]
[1757102138359,0.3132,4331.2,4331.1,16.27079024]
[1757102138518,1.2433,4331.2,4331.1,7.11988227]
[1757102138723,1.2433,4331.2,4331.1,8.085]
[1757102139171,1.2433,4331.2,4331.1,10.39388227]
[1757102139541,0.809,4331.2,4331.1,10.39388227]
[1757102139742,0.809,4331.2,4331.1,10.50908227]
[1757102144970,1.2393,4331.2,4331.1,10.50908227]
[1757102145973,0.809,4331.2,4331.1,10.50908227]
[1757102146178,0.001,4331.2,4331.1,10.82148227]
[1757102146474,0.001,4331.2,4331.1,12.90556374]
[1757102146675,0.001,4331.2,4331.1,13.39766374]
[1757102146865,0.001,4331.2,4331.1,12.93616374]
[1757102148549,0.001,4331.2,4331.1,12.62376374]
[1757102148863,1.2094,4331.2,4331.1,7.00098227]
[1757102149062,1.2094,4331.2,4331.1,10.39288227]
[1757102149380,0.7791,4331.2,4331.1,10.39288227]
[1757102149756,0.288,4331.2,4331.1,10.39288227]
[1757102152783,0.001,4331.2,4331.1,16.5058547]
[1757102153883,0.001,4331.2,4331.1,16.0443547]
[1757102155392,0.001,4331.2,4331.1,15.7319547]
[1757102155881,0.001,4331.2,4331.1,11.8479547]
[1757102155882,0.288,4331.2,4331.1,11.8479547]
[1757102156187,0.288,4331.2,4331.1,15.7299547]
[1757102156784,0.7791,4331.2,4331.1,10.39088227]
[1757102157158,0.7791,4331.2,4331.1,10.39188227]
[1757102157574,0.7791,4331.2,4331.1,6.50888227]
[1757102157762,0.7791,4331.2,4331.1,10.39188227]
[1757102157981,0.288,4331.2,4331.1,10.39188227]
[1757102158896,0.288,4331.2,4331.1,10.50708227]
[1757102159268,0.288,4331.2,4331.1,6.62408227]
[1757102159467,0.288,4331.2,4331.1,10.50608227]
[1757102160289,0.288,4331.2,4331.1,6.62408227]
[1757102160477,1.2094,4331.2,4331.1,6.62408227]
[1757102163106,0.288,4331.2,4331.1,6.62408227]
[1757102164899,0.001,4331.2,4331.1,6.93648227]
[1757102165097,0.001,4331.2,4331.1,8.5995247]
[1757102165490,0.001,4331.2,4331.1,6.93648227]
[1757102165688,0.001,4331.2,4331.1,2.73648227]
[1757102166000,0.001,4331.2,4331.1,3.69637109]
[1757102166190,0.001,4331.2,4331.1,3.67328227]